bitfinex-derivatives/quotes_BTCF0:USTF0_20250805
["timestamp","ask_amount","ask_price","bid_price","bid_amount"]
[1754437607016,1.08693854,114190.0,114180.0,0.88443395]
[1754437607427,0.72613854,114190.0,114180.0,1.05960325]
[1754437608029,1.08693854,114190.0,114180.0,1.05960325]
[1754437608520,1.08693854,114190.0,114180.0,0.88443395]
[1754437609730,1.08693854,114190.0,114180.0,0.68057652]
[1754437610130,1.08693854,114190.0,114180.0,0.85574582]
[1754437610827,1.08693854,114190.0,114180.0,0.68057652]
[1754437614931,0.72613854,114190.0,114180.0,0.68057652]
[1754437615234,1.08693854,114190.0,114180.0,0.68057652]
[1754437620438,1.49714298,114190.0,114180.0,0.07213652]
[1754437620634,1.49714298,114190.0,114180.0,0.68025652]
[1754437620834,1.49714298,114190.0,114180.0,0.07213652]
[1754437621029,0.2309047,114170.0,114160.0,1.42350946]
[1754437621238,1.85727358,114170.0,114160.0,1.42350946]
[1754437621434,1.85727358,114170.0,114160.0,2.03158946]
[1754437621629,1.44706914,114170.0,114160.0,2.03158946]
[1754437621826,1.44706914,114170.0,114160.0,1.82773203]
[1754437622843,1.40167105,114170.0,114160.0,1.82773203]
[1754437623949,1.40267105,114170.0,114160.0,1.82773203]
[1754437624138,1.40367105,114170.0,114160.0,1.82773203]
[1754437627147,1.40167105,114170.0,114160.0,1.82973203]
[1754437629048,1.40167105,114170.0,114160.0,1.85688203]
[1754437629745,1.40167105,114170.0,114160.0,1.82973203]
[1754437629951,1.40167105,114170.0,114160.0,1.87756203]
[1754437633249,1.0368647,114170.0,114160.0,2.05276203]
[1754437635249,1.40167105,114170.0,114160.0,2.05276203]
[1754437637740,1.40167105,114170.0,114160.0,1.87756203]
[1754437642045,0.9761347,114170.0,114160.0,2.05276203]
[1754437642454,1.0397847,114170.0,114160.0,2.05276203]
[1754437643053,0.3181847,114170.0,114160.0,2.05276203]
[1754437643552,0.6789847,114170.0,114160.0,2.05276203]
[1754437643953,0.6789847,114170.0,114160.0,1.87756203]
[1754437644751,0.6789847,114170.0,114160.0,2.46299099]
[1754437644953,1.08921366,114170.0,114160.0,2.46299099]
[1754437645842,0.72841366,114170.0,114160.0,2.46299099]
[1754437646047,1.08921366,114170.0,114160.0,2.46299099]
[1754437646246,0.72841366,114170.0,114160.0,2.28779099]
[1754437647049,1.08921366,114170.0,114160.0,2.05276193]
[1754437647353,1.08921366,114170.0,114160.0,2.28779099]
[1754437647556,1.08921366,114170.0,114160.0,1.87756203]
[1754437648356,1.08921366,114170.0,114160.0,2.28779099]
[1754437649259,1.08921366,114170.0,114160.0,1.07703099]
[1754437650158,1.08921366,114170.0,114160.0,1.25223099]
[1754437651152,1.08921366,114170.0,114160.0,0.84200203]
[1754437651359,1.08921366,114170.0,114160.0,1.29099099]
[1754437651858,1.08921366,114170.0,114160.0,1.11579099]
[1754437653760,1.02556366,114170.0,114160.0,1.11579099]
[1754437653968,1.08921366,114170.0,114160.0,1.11579099]
[1754437654163,1.08921366,114170.0,114160.0,0.70556203]
[1754437655465,1.08921366,114170.0,114160.0,1.29099099]
[1754437657663,1.08921366,114170.0,114160.0,1.11579099]
[1754437658362,1.08921366,114170.0,114160.0,1.29099109]
[1754437659550,1.08921366,114170.0,114160.0,1.29199109]
[1754437659755,1.08921366,114170.0,114160.0,1.29299109]
[1754437660359,0.72841366,114170.0,114160.0,1.29299109]
[1754437660560,1.08921366,114170.0,114160.0,1.29299109]
[1754437661056,0.72841366,114170.0,114160.0,1.29299109]
[1754437661257,1.08921366,114170.0,114160.0,1.29299109]
[1754437661558,1.08921366,114170.0,114160.0,1.11779099]
[1754437662163,1.08921366,114170.0,114160.0,1.29299089]
[1754437662759,0.6789847,114170.0,114160.0,1.29299089]
[1754437663063,0.98704366,114170.0,114160.0,1.49684832]
[1754437663265,1.05069366,114170.0,114160.0,1.49684832]
[1754437663967,0.94621366,114170.0,114160.0,1.49684832]
[1754437664161,0.2001347,114170.0,114160.0,1.49684832]
[1754437664463,0.1751847,114170.0,114160.0,1.85764832]
[1754437664665,0.7673082,114180.0,114170.0,0.2644446]
[1754437664861,0.7673082,114180.0,114170.0,0.67467356]
[1754437665060,0.6598633,114180.0,114170.0,0.67467356]
[1754437665261,0.6598633,114180.0,114170.0,0.87853099]
[1754437665665,0.7235133,114180.0,114170.0,0.87853099]
[1754437665866,1.13374226,114180.0,114170.0,0.87853099]
[1754437666168,1.13374226,114180.0,114170.0,0.87953099]
[1754437666466,0.7235133,114180.0,114170.0,0.87953099]
[1754437669373,0.14374,114180.0,114170.0,0.87953099]
[1754437669670,0.3189093,114180.0,114170.0,0.87953099]
[1754437673669,0.72913826,114180.0,114170.0,0.87953099]
[1754437673877,0.72913826,114180.0,114170.0,0.67567356]
[1754437676483,0.3189093,114180.0,114170.0,0.67567356]
[1754437677575,0.3189093,114180.0,114170.0,1.03647356]
[1754437678984,0.3189093,114180.0,114170.0,0.67567356]
[1754437679277,0.3189093,114180.0,114170.0,1.03647356]
[1754437681485,0.14374,114180.0,114170.0,1.03647356]
[1754437681679,0.71676626,114190.0,114180.0,0.2642693]
[1754437681680,0.10513,114190.0,114180.0,0.2642693]
[1754437681979,0.3167239,114190.0,114180.0,1.28157826]
[1754437682174,0.3167239,114190.0,114180.0,0.8713493]
[1754437682377,0.3167239,114190.0,114180.0,1.28157826]
[1754437682681,0.72695286,114190.0,114180.0,1.28157826]
[1754437683583,0.72795286,114190.0,114180.0,1.28157826]
[1754437684582,0.72795286,114190.0,114180.0,1.10640896]
[1754437684774,0.72795286,114190.0,114180.0,1.28157826]
[1754437684976,0.3177239,114190.0,114180.0,1.35051445]
[1754437685276,0.72895286,114190.0,114180.0,1.35051445]
[1754437685471,0.3187239,114190.0,114180.0,1.35051445]
[1754437685676,0.72895286,114190.0,114180.0,1.35051445]
[1754437685886,0.72895286,114190.0,114180.0,0.94028549]
[1754437686079,0.72895286,114190.0,114180.0,1.35051445]
[1754437686284,0.72795286,114190.0,114180.0,1.35251445]
[1754437686879,0.72695286,114190.0,114180.0,1.35251445]
[1754437687079,0.72695286,114190.0,114180.0,1.35351445]
[1754437687488,1.08775286,114190.0,114180.0,1.35351445]
[1754437687683,1.08775286,114190.0,114180.0,0.57126515]
[1754437687889,1.08775286,114190.0,114180.0,1.15754515]
[1754437688488,1.08775286,114190.0,114180.0,0.55058515]
[1754437688683,1.08775286,114190.0,114180.0,0.67885619]
[1754437690490,1.08775286,114190.0,114180.0,0.67785619]
[1754437691994,1.08775286,114190.0,114180.0,0.67685619]
[1754437694990,1.44855286,114190.0,114180.0,0.67673619]
[1754437698797,1.0383239,114190.0,114180.0,0.74515619]
[1754437699005,1.44855286,114190.0,114180.0,0.74515619]
[1754437699499,1.44855286,114190.0,114180.0,0.72196619]
[1754437699695,1.44855286,114190.0,114180.0,0.67673619]
[1754437700696,1.44855286,114190.0,114180.0,0.74515619]
[1754437701500,1.44855286,114190.0,114180.0,0.76583619]
[1754437701903,1.44855286,114190.0,114180.0,0.70543619]
[1754437702197,1.44855286,114190.0,114180.0,0.67673619]
[1754437704700,1.44855286,114190.0,114180.0,0.70416619]
[1754437708102,1.0383239,114190.0,114180.0,0.70416619]
[1754437708401,1.44855286,114190.0,114180.0,0.72010619]
[1754437708903,1.0383239,114190.0,114180.0,0.72010619]
[1754437709101,1.44855286,114190.0,114180.0,0.72010619]
[1754437713100,1.44855286,114190.0,114180.0,0.06993619]
[1754437713402,1.85878182,114190.0,114180.0,0.67645619]
[1754437714703,1.86078182,114190.0,114180.0,0.67545619]
[1754437719807,1.0403239,114190.0,114180.0,0.67545619]
[1754437720107,1.86078182,114190.0,114180.0,0.67545619]
[1754437728911,1.86078182,114190.0,114180.0,0.67525619]
[1754437732315,1.86971549,114190.0,114180.0,0.67525619]
[1754437732516,1.86078182,114190.0,114180.0,0.67525619]
[1754437736017,1.869514,114190.0,114180.0,0.67525619]
[1754437737112,1.869514,114190.0,114180.0,0.06893619]
[1754437737319,0.2298347,114170.0,114160.0,0.04593203]
[1754437737617,1.44534366,114170.0,114160.0,0.67836203]
[1754437738521,1.44534366,114170.0,114160.0,0.68036203]
[1754437738818,1.44534366,114170.0,114160.0,0.68136203]
[1754437739520,1.44534366,114170.0,114160.0,0.65933203]
[1754437740315,1.44534366,114170.0,114160.0,0.68036203]
[1754437740715,1.44534366,114170.0,114160.0,0.79550003]
[1754437745534,1.85557262,114170.0,114160.0,0.117138]
[1754437745832,1.85557262,114170.0,114160.0,0.723258]
[1754437746230,1.44534366,114170.0,114160.0,0.723258]
[1754437746834,1.44634366,114170.0,114160.0,0.748448]
[1754437747935,1.44634366,114170.0,114160.0,0.785488]
[1754437749541,1.44634366,114170.0,114160.0,0.784488]
[1754437749934,1.44534366,114170.0,114160.0,0.763458]
[1754437750438,1.44634366,114170.0,114160.0,0.762458]
[1754437751026,1.85657262,114170.0,114160.0,0.721258]
[1754437751231,1.44634366,114170.0,114160.0,0.721258]
[1754437751841,1.85657262,114170.0,114160.0,0.721258]
[1754437752437,1.44634366,114170.0,114160.0,0.721258]
[1754437757946,1.44634366,114170.0,114160.0,0.747448]
[1754437759642,1.44634366,114170.0,114160.0,0.721258]
[1754437760643,1.44634366,114170.0,114160.0,0.747448]
[1754437761146,1.44634366,114170.0,114160.0,0.784488]
[1754437765937,1.44634366,114170.0,114160.0,0.804928]
[1754437766752,1.44534366,114170.0,114160.0,0.806928]
[1754437768259,1.44534366,114170.0,114160.0,0.805928]
[1754437768450,1.44534366,114170.0,114160.0,0.806928]
[1754437770642,1.44534366,114170.0,114160.0,0.786248]
[1754437771455,1.44534366,114170.0,114160.0,0.723018]
[1754437772156,1.44534366,114170.0,114160.0,0.748388]
[1754437772556,1.44534366,114170.0,114160.0,0.747388]
[1754437772750,1.44534366,114170.0,114160.0,0.748388]
[1754437772949,1.44534366,114170.0,114160.0,0.764288]
[1754437773150,1.44534366,114170.0,114160.0,0.786448]
[1754437774251,1.44534366,114170.0,114160.0,0.807128]
[1754437774453,1.38936366,114170.0,114160.0,0.786448]
[1754437774660,1.38936366,114170.0,114160.0,0.807128]
[1754437777359,1.38936366,114170.0,114160.0,0.786448]
[1754437779063,1.44445366,114170.0,114160.0,0.786448]
[1754437781267,1.85468262,114170.0,114160.0,0.722778]
[1754437782158,1.85468262,114170.0,114160.0,0.721778]
[1754437783067,1.85568262,114170.0,114160.0,0.720778]
[1754437783761,1.44545366,114170.0,114160.0,0.720778]
[1754437785468,1.85568262,114170.0,114160.0,0.720778]
[1754437786260,1.44545366,114170.0,114160.0,0.746148]
[1754437791068,1.44545366,114170.0,114160.0,0.762048]
[1754437791268,1.44545366,114170.0,114160.0,0.784208]
[1754437797371,1.0357147,114170.0,114160.0,0.804888]
[1754437797571,1.44594366,114170.0,114160.0,0.804888]
[1754437798476,1.44594366,114170.0,114160.0,0.805888]
[1754437798676,1.44494366,114170.0,114160.0,0.806888]
[1754437799880,1.44494366,114170.0,114160.0,0.805888]
[1754437800078,1.44494366,114170.0,114160.0,0.785888]
[1754437802381,1.44494366,114170.0,114160.0,0.784888]
[1754437802580,1.44494366,114170.0,114160.0,0.785888]
[1754437802981,1.44494366,114170.0,114160.0,0.784888]
[1754437803181,1.44494366,114170.0,114160.0,0.785888]
[1754437803783,1.44494366,114170.0,114160.0,0.784888]
[1754437803973,1.44494366,114170.0,114160.0,0.785888]
[1754437804577,1.44494366,114170.0,114160.0,0.783888]
[1754437804779,1.44494366,114170.0,114160.0,0.784888]
[1754437805277,1.44594366,114170.0,114160.0,0.761648]
[1754437805783,1.44594366,114170.0,114160.0,0.156408]
[1754437805980,1.85617262,114170.0,114160.0,0.720338]
[1754437806179,1.85617262,114170.0,114160.0,0.721338]
[1754437807675,1.44594366,114170.0,114160.0,0.721338]
[1754437808491,1.44594366,114170.0,114160.0,0.746248]
[1754437809391,1.44594366,114170.0,114160.0,0.745248]
[1754437809590,1.44594366,114170.0,114160.0,0.720338]
[1754437812396,1.85617262,114170.0,114160.0,0.720338]
[1754437812696,1.44594366,114170.0,114160.0,0.720338]
[1754437813192,1.85617262,114170.0,114160.0,0.720338]
[1754437814491,0.4864214,114150.0,114140.0,0.08325]
[1754437814695,2.02847932,114150.0,114140.0,0.68829]
[1754437815897,2.02847932,114150.0,114140.0,0.68929]
[1754437816092,2.02847932,114150.0,114140.0,0.8645206]
[1754437816293,2.02847932,114150.0,114140.0,0.8655206]
[1754437817493,2.02847932,114150.0,114140.0,0.9806586]
[1754437818096,2.02847932,114150.0,114140.0,0.805428]
[1754437818694,2.02847932,114150.0,114140.0,0.81426036]
[1754437819900,2.02847932,114150.0,114140.0,0.98949096]
[1754437820298,1.0720414,114150.0,114140.0,1.39971992]
[1754437820494,0.76067036,114150.0,114140.0,1.39971992]
[1754437820698,1.12147036,114150.0,114140.0,1.39971992]
[1754437820898,1.14562036,114150.0,114140.0,1.39971992]
[1754437821494,1.07766326,114150.0,114140.0,1.39971992]
[1754437821696,0.6236272,114150.0,114140.0,1.39971992]
[1754437821902,0.6236272,114150.0,114140.0,1.69971992]
[1754437822097,0.5360152,114150.0,114140.0,1.87493591]
[1754437822596,0.5360152,114150.0,114140.0,1.69971992]
[1754437822801,0.1752152,114150.0,114140.0,1.69971992]
[1754437823200,1.03384286,114160.0,114150.0,0.2589352]
[1754437823391,0.6236139,114160.0,114150.0,0.66916416]
[1754437823800,0.5360115,114160.0,114150.0,0.66916416]
[1754437824702,0.6910912,114170.0,114160.0,0.2133299]
[1754437824999,0.6910912,114170.0,114160.0,0.8638399]
[1754437825194,0.6910912,114170.0,114160.0,0.9789779]
[1754437825797,0.6910912,114170.0,114160.0,0.9819779]
[1754437826004,0.7323212,114170.0,114160.0,0.9819779]
[1754437826398,0.3715212,114170.0,114160.0,0.9819779]
[1754437826703,0.7668312,114170.0,114160.0,0.9819779]
[1754437827203,0.7824212,114170.0,114160.0,0.9819779]
[1754437827393,0.7824212,114170.0,114160.0,0.9839779]
[1754437828105,0.8045712,114170.0,114160.0,0.9839779]
[1754437833909,1.16922214,114170.0,114160.0,0.9839779]
[1754437834805,0.8045712,114170.0,114160.0,0.9839779]
[1754437835000,0.2864918,114170.0,114160.0,1.34862884]
[1754437836106,0.2864918,114170.0,114160.0,0.9839779]
[1754437836412,0.2627918,114170.0,114160.0,1.18783533]
[1754437836806,0.2864918,114170.0,114160.0,1.18783533]
[1754437837106,0.1751967,114170.0,114160.0,1.55248627]
[1754437837311,0.1751846,114170.0,114160.0,1.72767767]
[1754437837512,0.1751846,114170.0,114160.0,2.02767767]
[1754437837813,0.7322939,114180.0,114170.0,0.2133146]
[1754437838015,0.7668039,114180.0,114170.0,0.2589046]
[1754437838213,0.7385983,114180.0,114170.0,0.2589046]
[1754437838715,0.7607483,114180.0,114170.0,0.2589046]
[1754437838914,0.7607483,114180.0,114170.0,0.2599046]
[1754437839617,0.3999483,114180.0,114170.0,0.2599046]
[1754437840309,0.7607483,114180.0,114170.0,0.3750426]
[1754437840517,0.7607483,114180.0,114170.0,0.3760426]
[1754437841216,0.3999483,114180.0,114170.0,0.3760426]
[1754437847620,0.7607483,114180.0,114170.0,0.3553626]
[1754437847815,1.12539924,114180.0,114170.0,0.3553626]
[1754437848217,0.76459924,114180.0,114170.0,0.3553626]
[1754437852727,0.81012455,114180.0,114170.0,0.76553885]
[1754437853026,1.17092455,114180.0,114170.0,0.96939628]
[1754437853630,1.17092455,114180.0,114170.0,0.55922003]
[1754437856033,1.17092455,114180.0,114170.0,0.38403543]
[1754437856234,1.5811008,114180.0,114170.0,0.97331543]
[1754437856833,1.5811008,114180.0,114170.0,0.769458]
[1754437858237,1.5811008,114180.0,114170.0,0.721538]
[1754437862540,1.5811008,114180.0,114170.0,0.8967228]
[1754437862930,0.7607483,114180.0,114170.0,0.9216328]
[1754437863134,1.17092455,114180.0,114170.0,1.36884905]
[1754437864046,1.17092455,114180.0,114170.0,1.57270648]
[1754437866841,1.17092455,114180.0,114170.0,1.16253023]
[1754437867041,1.17092455,114180.0,114170.0,1.57270648]
[1754437867644,1.17092455,114180.0,114170.0,0.98734543]
[1754437867940,1.17092455,114180.0,114170.0,1.39752168]
[1754437868129,1.17092455,114180.0,114170.0,0.98734543]
[1754437868332,1.17092455,114180.0,114170.0,1.16253023]
[1754437870745,1.17092455,114180.0,114170.0,1.57270648]
[1754437870951,0.75101455,114180.0,114170.0,1.59338648]
[1754437871449,0.80792455,114180.0,114170.0,0.9793528]
[1754437871648,0.80792455,114180.0,114170.0,1.38952905]
[1754437871949,0.80792455,114180.0,114170.0,0.9586728]
[1754437873146,0.80792455,114180.0,114170.0,0.9793528]
[1754437874148,1.16872455,114180.0,114170.0,0.9793526]
[1754437876349,1.16872455,114180.0,114170.0,1.18321003]
[1754437878550,1.16872455,114180.0,114170.0,1.16253003]
[1754437878950,1.5789008,114180.0,114170.0,1.16253003]
[1754437879346,1.16872455,114180.0,114170.0,1.16253003]
[1754437880950,1.16872455,114180.0,114170.0,1.10058003]
[1754437881151,1.5789008,114180.0,114170.0,0.721178]
[1754437881555,1.5789008,114180.0,114170.0,0.721138]
[1754437888465,0.7585483,114180.0,114170.0,0.721138]
[1754437888663,1.5789008,114180.0,114170.0,0.721138]
[1754437892665,1.5789008,114180.0,114170.0,0.746048]
[1754437894960,1.5789008,114180.0,114170.0,0.747048]
[1754437896468,1.5789008,114180.0,114170.0,0.745048]
[1754437896768,1.5789008,114180.0,114170.0,0.746048]
[1754437897866,1.5789008,114180.0,114170.0,0.761578]
[1754437906271,1.5789008,114180.0,114170.0,0.9367626]
[1754437906873,1.5789008,114180.0,114170.0,0.9580626]
[1754437907661,1.5789008,114180.0,114170.0,0.98673543]
[1754437908174,1.5789008,114180.0,114170.0,1.16191993]
[1754437908668,1.5789008,114180.0,114170.0,0.98673543]
[1754437910465,1.5789008,114180.0,114170.0,0.92499543]
[1754437910771,1.5789008,114180.0,114170.0,0.94990543]
[1754437911268,1.5789008,114180.0,114170.0,0.34590543]
[1754437911470,1.5789008,114180.0,114170.0,0.32099543]
[1754437911773,1.5789008,114180.0,114170.0,0.92459543]
[1754437912577,1.5789008,114180.0,114170.0,0.720738]
[1754437913074,1.5789008,114180.0,114170.0,0.719738]
[1754437913274,1.5809008,114180.0,114170.0,0.719738]
[1754437913468,1.5819008,114180.0,114170.0,0.718738]
[1754437918765,1.99207705,114180.0,114170.0,0.718738]
[1754437918970,1.5819008,114180.0,114170.0,0.718738]
[1754437919170,0.01574,114150.0,114140.0,1.66327579]
[1754437919376,1.4903078,114150.0,114140.0,2.29174579]
[1754437919770,1.4903078,114150.0,114140.0,2.08788836]
[1754437920977,1.4903078,114150.0,114140.0,2.08988836]
[1754437921180,1.4903078,114150.0,114140.0,2.09088836]
[1754437921771,0.6699553,114150.0,114140.0,2.09088836]
[1754437921977,1.08013155,114150.0,114140.0,2.09088836]
[1754437922479,0.6361353,114150.0,114140.0,2.61620261]
[1754437922675,1.04631155,114150.0,114140.0,2.61620261]
[1754437922876,1.04631155,114150.0,114140.0,2.57239511]
[1754437926582,1.08013155,114150.0,114140.0,2.57239511]
[1754437927393,0.6699553,114150.0,114140.0,2.57239511]
[1754437927686,1.08013155,114150.0,114140.0,2.57239511]
[1754437929784,1.08013155,114150.0,114140.0,2.16221886]
[1754437929986,1.08013155,114150.0,114140.0,2.39717661]
[1754437931185,1.08013155,114150.0,114140.0,1.98700036]
[1754437932785,0.6699553,114150.0,114140.0,1.98700036]
[1754437933088,1.08013155,114150.0,114140.0,1.98700036]
[1754437933780,0.6699553,114150.0,114140.0,2.16223096]
[1754437933985,1.08013155,114150.0,114140.0,2.16223096]
[1754437934588,1.08013155,114150.0,114140.0,2.57240721]
[1754437937685,1.08013155,114150.0,114140.0,1.98700036]
[1754437937884,1.08013155,114150.0,114140.0,2.39717661]
[1754437938393,1.08013155,114150.0,114140.0,1.98700036]
[1754437938591,1.08013155,114150.0,114140.0,2.39717661]
[1754437939494,1.08013155,114150.0,114140.0,1.98700036]
[1754437939788,0.6699553,114150.0,114140.0,2.39717661]
[1754437939993,1.08013155,114150.0,114140.0,2.39717661]
[1754437940285,0.6699553,114150.0,114140.0,2.57240721]
[1754437940593,1.08013155,114150.0,114140.0,2.16223096]
[1754437941291,1.08013155,114150.0,114140.0,0.99016096]
[1754437943692,1.08013155,114150.0,114140.0,1.40033721]
[1754437944493,1.08013155,114150.0,114140.0,1.22510661]
[1754437945593,1.08013155,114150.0,114140.0,0.81493036]
[1754437946795,1.08013155,114150.0,114140.0,0.99016096]
[1754437947784,1.08013155,114150.0,114140.0,1.19401839]
[1754437948685,0.94619155,114150.0,114140.0,1.19401839]
[1754437948999,0.1752153,114150.0,114140.0,1.40033721]
[1754437949200,0.1752153,114150.0,114140.0,1.76113721]
[1754437954705,1.6752153,114150.0,114140.0,1.76113721]
[1754437955707,1.6752153,114150.0,114140.0,2.97225721]
[1754437956909,1.6982153,114150.0,114140.0,2.97225721]
[1754437960015,1.6982153,114150.0,114140.0,2.61145721]
[1754437960214,1.6982153,114150.0,114140.0,2.97225721]
[1754437961818,0.2527426,114160.0,114150.0,0.2578852]
[1754437962017,0.2527426,114160.0,114150.0,1.64338914]
[1754437962219,1.7527426,114160.0,114150.0,1.64338914]
[1754437962416,1.7743626,114160.0,114150.0,1.23321289]
[1754437962823,1.8087026,114160.0,114150.0,1.23321289]
[1754437963522,1.8087026,114160.0,114150.0,1.23421289]
[1754437965122,1.8087026,114160.0,114150.0,1.23321289]
[1754437965423,1.8087026,114160.0,114150.0,1.35435089]
[1754437969221,1.57896,114160.0,114150.0,1.76452714]
[1754437970017,1.5,114160.0,114150.0,1.76452714]
[1754437970220,1.523,114160.0,114150.0,1.76452714]
[1754437970422,1.523,114160.0,114150.0,1.5601757]
[1754437972428,1.523,114160.0,114150.0,1.76438367]
[1754437972722,0.55991742,114180.0,114170.0,0.1751845]
[1754437973028,0.63517509,114180.0,114170.0,1.32104075]
[1754437973221,2.13517509,114180.0,114170.0,1.32104075]
[1754437974225,1.7711459,114180.0,114170.0,1.68184075]
[1754437974425,1.7711459,114180.0,114170.0,1.68284075]
[1754437974629,1.55217,114180.0,114170.0,1.68284075]
[1754437974828,1.63025,114180.0,114170.0,1.68284075]
[1754437975229,1.63025,114180.0,114170.0,1.79797875]
[1754437975431,1.8054192,114180.0,114170.0,1.79797875]
[1754437977128,1.63025,114180.0,114170.0,1.79797875]
[1754437977933,1.8054192,114180.0,114170.0,1.79797875]
[1754437979430,1.7610792,114180.0,114170.0,1.79797875]
[1754437979635,1.8054192,114180.0,114170.0,1.79797875]
[1754437980835,1.8054192,114180.0,114170.0,2.00218672]
[1754437982032,1.63025,114180.0,114170.0,2.00218672]
[1754437982835,1.8054192,114180.0,114170.0,2.00218672]
[1754437989037,1.8054192,114180.0,114170.0,1.59201047]
[1754437989237,1.8054192,114180.0,114170.0,2.00218672]
[1754437989739,1.8054192,114180.0,114170.0,1.59201047]
[1754437990041,1.8054192,114180.0,114170.0,2.00218672]
[1754437994735,2.21559545,114180.0,114170.0,2.00218672]
[1754437994936,1.8054192,114180.0,114170.0,2.00218672]
[1754437995439,2.21559545,114180.0,114170.0,2.00218672]
[1754437997345,1.8054192,114180.0,114170.0,2.00218672]
[1754437997536,2.21559545,114180.0,114170.0,2.00218672]
[1754437998044,1.8054192,114180.0,114170.0,2.00218672]
[1754438001545,1.8054192,114180.0,114170.0,1.79797875]
[1754438002248,2.21559545,114180.0,114170.0,1.79797875]
[1754438002438,1.8054192,114180.0,114170.0,1.79797875]
[1754438004849,1.8054192,114180.0,114170.0,1.79997875]
[1754438005146,1.8054192,114180.0,114170.0,1.80297875]
[1754438008841,1.7057692,114180.0,114170.0,1.80297875]
[1754438009045,1.7842492,114180.0,114170.0,2.00747233]
[1754438009352,0.10708,114180.0,114170.0,2.00747233]
[1754438009540,0.05256,114180.0,114170.0,2.41764858]
[1754438009741,0.3789766,114190.0,114180.0,0.2261792]
[1754438009943,1.8942166,114190.0,114180.0,1.55659005]
[1754438010249,1.8942166,114190.0,114180.0,1.2615518]
[1754438010748,1.8942166,114190.0,114180.0,1.67172805]
[1754438010943,1.8942166,114190.0,114180.0,1.67272805]
[1754438011344,1.8942166,114190.0,114180.0,1.2645518]
[1754438011544,1.8942166,114190.0,114180.0,0.85437555]
[1754438011746,1.8942166,114190.0,114180.0,1.67472805]
[1754438013653,1.8942166,114190.0,114180.0,1.2645518]
[1754438014061,1.8942166,114190.0,114180.0,1.2665518]
[1754438014447,1.8504258,114190.0,114180.0,1.67972805]
[1754438015055,1.8504258,114190.0,114180.0,1.2695518]
[1754438015555,1.8504258,114190.0,114180.0,1.67972805]
[1754438016254,1.8504258,114190.0,114180.0,1.88422163]
[1754438019860,1.8504258,114190.0,114180.0,1.67972805]
[1754438021360,1.8504258,114190.0,114180.0,0.85937555]
[1754438021558,1.8504258,114190.0,114180.0,1.67972805]
[1754438022759,1.8504258,114190.0,114180.0,0.85937555]
[1754438023058,1.8504258,114190.0,114180.0,1.2695518]
[1754438025860,1.8504258,114190.0,114180.0,1.67972805]
[1754438028759,1.8284658,114190.0,114180.0,1.65821805]
[1754438031061,1.8284658,114190.0,114180.0,1.2480418]
[1754438032364,1.8294658,114190.0,114180.0,1.2476018]
[1754438032664,1.8294658,114190.0,114180.0,2.86837805]
[1754438034966,1.8294658,114190.0,114180.0,2.50757805]
[1754438035165,1.8294658,114190.0,114180.0,2.86837805]
[1754438038067,1.8294658,114190.0,114180.0,2.04802555]
[1754438038268,1.8294658,114190.0,114180.0,2.86837805]
[1754438043782,1.8294658,114190.0,114180.0,3.46981805]
[1754438044187,1.8294658,114190.0,114180.0,2.64946555]
[1754438044383,1.8294658,114190.0,114180.0,3.46981805]
[1754438044584,1.8294658,114190.0,114180.0,3.0596418]
[1754438044779,2.23964205,114190.0,114180.0,1.8145126]
[1754438044984,2.23964205,114190.0,114180.0,2.4159526]
[1754438045378,2.23964205,114190.0,114180.0,2.4969926]
[1754438046087,2.23964205,114190.0,114180.0,2.4909926]
[1754438046287,2.23964205,114190.0,114180.0,2.4929926]
[1754438049994,2.60044205,114190.0,114180.0,2.20607469]
[1754438050894,2.60044205,114190.0,114180.0,2.23066469]
[1754438051085,2.60044205,114190.0,114180.0,2.22866469]
[1754438051280,2.60044205,114190.0,114180.0,2.22966469]
[1754438051595,2.60044205,114190.0,114180.0,2.22866469]
[1754438052286,2.60044205,114190.0,114180.0,2.63884094]
[1754438052486,2.60044205,114190.0,114180.0,2.67218094]
[1754438052887,2.1902658,114190.0,114180.0,2.69529094]
[1754438053089,2.60044205,114190.0,114180.0,2.69529094]
[1754438054886,2.60044205,114190.0,114180.0,2.4909126]
[1754438055792,2.60044205,114190.0,114180.0,2.08073635]
[1754438055995,2.60044205,114190.0,114180.0,2.4909126]
[1754438060896,2.60044205,114190.0,114180.0,2.69529094]
[1754438062398,2.23964205,114190.0,114180.0,2.69529094]
[1754438066101,2.23964205,114190.0,114180.0,1.48469094]
[1754438069697,2.23964205,114190.0,114180.0,0.39211469]
[1754438069998,2.23964205,114190.0,114180.0,0.99315469]
[1754438070301,2.23964205,114190.0,114180.0,1.01637469]
[1754438070502,2.23964205,114190.0,114180.0,1.03215469]
[1754438070697,2.23964205,114190.0,114180.0,1.49647094]
[1754438073702,2.23964205,114190.0,114180.0,1.67164024]
[1754438073903,1.8294658,114190.0,114180.0,1.67164024]
[1754438074201,2.23964205,114190.0,114180.0,1.67164024]
[1754438075905,1.8055058,114190.0,114180.0,1.67164024]
[1754438076200,0.76027205,114190.0,114180.0,1.67164024]
[1754438076502,2.26027205,114190.0,114180.0,1.67164024]
[1754438076703,1.8500958,114190.0,114180.0,1.67164024]
[1754438077006,2.26027205,114190.0,114180.0,1.67164024]
[1754438077200,1.8500958,114190.0,114180.0,1.67164024]
[1754438077897,1.8500958,114190.0,114180.0,1.4672619]
[1754438078097,0.2189558,114190.0,114180.0,2.23823815]
[1754438078298,0.175167,114190.0,114180.0,2.23823815]
[1754438078699,1.675167,114190.0,114180.0,2.23823815]
[1754438078898,1.675167,114190.0,114180.0,1.8280619]
[1754438079099,1.754507,114190.0,114180.0,1.8280619]
[1754438079702,2.16468325,114190.0,114180.0,1.8280619]
[1754438080211,2.16468325,114190.0,114180.0,1.41788565]
[1754438080509,2.16468325,114190.0,114180.0,1.8280619]
[1754438080704,1.754507,114190.0,114180.0,1.8280619]
[1754438081606,2.16468325,114190.0,114180.0,1.8280619]
[1754438087412,1.754507,114190.0,114180.0,1.8280619]
[1754438087713,2.16468325,114190.0,114180.0,1.8280619]
[1754438089215,2.16468325,114190.0,114180.0,1.0518526]
[1754438089401,2.16468325,114190.0,114180.0,1.6302026]
[1754438089606,2.16468325,114190.0,114180.0,1.6525726]
[1754438089914,2.16468325,114190.0,114180.0,1.2917726]
[1754438092816,2.16468325,114190.0,114180.0,0.22673635]
[1754438093010,2.52548325,114190.0,114180.0,0.80415635]
[1754438093418,2.52548325,114190.0,114180.0,0.80515635]
[1754438093811,2.52548325,114190.0,114180.0,0.80415635]
[1754438094116,2.52548325,114190.0,114180.0,0.80615635]
[1754438094616,2.52548325,114190.0,114180.0,0.80715635]
[1754438095008,2.52548325,114190.0,114180.0,0.80615635]
[1754438096109,2.52548325,114190.0,114180.0,0.79037635]
[1754438097610,2.9356595,114190.0,114180.0,0.79029635]
[1754438098022,2.9356595,114190.0,114180.0,0.78829635]
[1754438098224,2.9356595,114190.0,114180.0,0.18773635]
[1754438098520,2.9356595,114190.0,114180.0,0.78829635]
[1754438098716,2.9356595,114190.0,114180.0,0.78729635]
[1754438098919,2.9356595,114190.0,114180.0,0.78829635]